Cogmind - Beta 15 @@@ ROGUE MODE // 2025.05.24 @ 14:14:27 Player: 7604 Result: Destroyed by Enhanced Grunt with Neutron Cannon Performance ------------- Evolutions (3) 1500 Regions Visited (9) 1800 Robots Destroyed (132) 660 Value Destroyed (3750) 3750 Prototype IDs (24) 480 Alien Tech Used (0) 0 Bonus (300) 300 TOTAL SCORE: 8490 Bonus ------- Met Data Miner 300 Cogmind --------- Core Integrity 0/700 Matter 179/300 Energy 33/240 System Corruption 21% Temperature Cool (0) Movement Core (1750) Ox34 Location -7/Data Miner Parts ------- > --- POWER (1) -------- Nuclear Core > --- PROPULSION (4) --- Armored Treads > --- UTILITY (6) ------ Improved Heat Sink Huge Storage Unit > --- WEAPON (2) ------- Heavy Ion Cannon Heavy Ion Cannon > --- INVENTORY (25) --- Experimental Sensor Array Seismic Detector Authchip [Processor] Authchip [Armor] Heavy Assault Cannon Gauss Cannon Rocket Launcher Long-range Missile Launcher Long-range Missile Launcher Improved Datajack Heavy Flail Peak State ------------ > --- POWER ------------ Reinforced Deuterium Engine > --- PROPULSION ------- Armored Treads Advanced Treads Heavy Treads > --- UTILITY ---------- Improved Heat Sink Improved Heat Sink Huge Storage Unit Improved Medium Armor Plating Medium Reactive Plating Sensor Drone Bay > --- WEAPON ----------- Heavy Ion Cannon Heavy Ion Cannon > --- INVENTORY -------- Nuclear Core Armored Treads Armored Treads Improved Heat Sink Experimental Sensor Array Seismic Detector Authchip [Processor] Authchip [Armor] Heavy EM Shotgun High-powered Shock Rifle Heavy Ion Cannon Heavy Ion Cannon Heavy Ion Cannon Heavy Assault Cannon Gauss Cannon Rocket Launcher Long-range Missile Launcher Long-range Missile Launcher Improved Datajack Heavy Flail [Rating: 60] Favorites ----------- Power Ion Engine Engine Ion Engine Power Core Nuclear Core Propulsion Light Treads Treads Light Treads Utility Seismic Detector Device Seismic Detector Storage Large Storage Unit Processor Improved Signal Interpreter Hackware Hacking Suite Protection Medium Reactive Plating Weapon Heavy Ion Cannon Energy Gun Field Laser Energy Cannon Heavy Ion Cannon Ballistic Gun Assault Rifle Ballistic Cannon Light Cannon Launcher Long-range Missile Launcher Impact Weapon Heavy Flail Special Melee Weapon Datajack Build | -11 -10 -10 -10 -9 -8 -7 -7 -7 -7 ------- Run | Yrd Mat Min Exi Min Mat Fac Low Low Dat Slots Evolved 6 | . . . . . 4 2 . . . Power . | . . . . . . . . . . Propulsion 2 | . . . . . 2 . . . . Utility 4 | . . . . . 2 2 . . . Weapon . | . . . . . . . . . . Parts Attached 87 | 7 10 3 1 3 32 24 . 2 5 Power 7 | 1 1 . . . 2 2 . . 1 Engine 6 | 1 1 . . . 2 2 . . . Core 1 | . . . . . . . . . 1 Reactor . | . . . . . . . . . . Propulsion 22 | 2 . 2 . 2 10 4 . . 2 Treads 22 | 2 . 2 . 2 10 4 . . 2 Leg . | . . . . . . . . . . Wheel . | . . . . . . . . . . Hover . | . . . . . . . . . . Flight . | . . . . . . . . . . Utility 28 | 2 3 1 . . 11 11 . . . Device 11 | 1 1 1 . . 4 4 . . . Storage 4 | 1 1 . . . 1 1 . . . Processor 1 | . . . . . 1 . . . . Hackware 1 | . . . . . . 1 . . . Protection 11 | . 1 . . . 5 5 . . . Artifact . | . . . . . . . . . . Weapon 30 | 2 6 . 1 1 9 7 . 2 2 Energy Gun 6 | . . . . . 4 2 . . . Energy Cannon 8 | . . . . . 2 4 . . 2 Ballistic Gun 6 | 2 2 . . . 2 . . . . Ballistic Cannon 2 | . 2 . . . . . . . . Launcher 4 | . 1 . . 1 . . . 2 . Special Weapon . | . . . . . . . . . . Impact Weapon 2 | . 1 . . . 1 . . . . Slashing Weapon . | . . . . . . . . . . Piercing Weapon . | . . . . . . . . . . Special Melee Weapon 2 | . . . 1 . . 1 . . . Unidentified Prototypes 7 | . . . . . 5 2 . . . Corrupted Parts 3 | . . . . . . 3 . . . System Corruption 19 | . . . . . . 19 . . . Parts Lost 37 | . 1 4 . . 9 4 . . 19 Power 2 | . 1 . . . . . . . 1 Propulsion 12 | . . 2 . . 3 2 . . 5 Utility 17 | . . 1 . . 6 2 . . 8 Weapon 6 | . . 1 . . . . . . 5 Highest Loss Streak 19 | . 1 2 . . 3 3 . . 19 To Critical Strikes . | . . . . . . . . . . Average Backups 17 | 3 14 14 15 14 15 22 22 23 21 Power . | . . 1 2 1 1 1 1 1 . Propulsion 1 | . 1 . . 2 1 2 2 2 1 Utility 6 | 2 5 5 6 5 4 7 8 8 7 Weapon 7 | 1 6 5 7 4 6 9 10 11 10 Tool/Special . | . . . . . . . . . . Unused Backups 22 | . 3 . . 7 5 1 . 1 5 Power 2 | . . . . 1 1 . . . . Propulsion 1 | . . . . . . . . 1 . Utility 7 | . 1 . . 3 . . . . 3 Weapon 12 | . 2 . . 3 4 1 . . 2 Tool/Special . | . . . . . . . . . . Average Slot Usage (%) 99 | . 99 100 100 100 99 99 100 100 92 Engine 10 | . 13 14 14 14 8 7 7 7 6 Treads 29 | . 28 28 28 28 35 29 30 30 27 Device 17 | . 11 13 14 14 17 23 24 22 21 Storage 10 | . 14 14 14 14 9 7 7 7 7 Protection 6 | . 2 . . . 8 10 12 15 12 Energy Cannon 7 | . . . . . 12 13 15 14 8 Ballistic Gun 6 | . 18 10 14 14 . . . . . Ballistic Cannon 5 | . 9 16 . 13 . . . . . Peak Build Rating 60 | 7 10 10 10 11 32 55 57 58 60 Average Rating 26 | 6 8 9 10 9 26 43 55 56 53 On Entrance 24 | . 7 9 10 10 10 32 52 57 57 Naked Turns . | . . . . . . . . . . Heaviest Build 173 | 15 34 32 31 31 74 153 167 173 167 Greatest Support 84 | 40 40 40 40 40 84 84 84 84 84 Greatest Overweight (x) 2 | . . . . . . 1 1 2 1 Average Overweight (x) . | . . . . . . . 1 1 1 Largest Inventory Capacity 25 | 8 15 15 15 15 20 25 25 25 25 Average Capacity 18 | 7 14 15 15 15 16 23 25 25 25 Most Carried 25 | 5 15 15 15 15 20 25 25 25 25 Average Carried 17 | 3 14 14 15 14 15 22 24 25 23 Final Capacity 25 | 8 15 15 15 15 20 25 25 25 25 Final Carried 25 | 5 15 15 15 15 20 25 25 25 12 Class Distribution -------------------- 71% | Mutant 28% | Scavenger-Mutant Dominant Class ---------------- Mutant | -10/Materials Mutant | -10/Mines Mutant | -10/Exiles Mutant | -9/Mines Mutant | -8/Materials Scavenger-Mutant | -7/Factory Mutant | -7/Lower Caves Mutant | -7/Lower Caves Mutant | -7/Data Miner Resources | -11 -10 -10 -10 -9 -8 -7 -7 -7 -7 ----------- Run | Yrd Mat Min Exi Min Mat Fac Low Low Dat Matter Collected 3302 | 414 767 390 . 107 495 577 312 240 . Remotely . | . . . . . . . . . . Salvage Created 4684 | 241 887 176 . 2 1580 1217 211 172 198 Parts 254 | 20 46 13 . 4 77 74 4 9 7 Haulers Intercepted 7 | . 2 . . . 4 1 . . . Recyclers Shooed 7 | . 1 1 . . 2 3 . . . Parts Field Recycled . | . . . . . . . . . . Retrieved Matter . | . . . . . . . . . . Parts Self-Destructed 10 | . . . . . . . 3 7 . Prevented 2 | . . . . . . . . 2 . Kills | -11 -10 -10 -10 -9 -8 -7 -7 -7 -7 ------- Run | Yrd Mat Min Exi Min Mat Fac Low Low Dat Combat Hostiles Destroyed 91 | . 19 12 . 2 23 22 4 7 2 Melee 2 | . . . . . 1 1 . . . Guns 16 | . 10 4 . 1 1 . . . . Cannons 57 | . 6 8 . . 21 14 4 3 1 AOE 13 | . 3 . . 1 . 5 . 4 . Classes Destroyed 16 | 2 6 . . . 4 3 . . 1 Worker 1 | . 1 . . . . . . . . Builder 5 | . . . . . 4 1 . . . Tunneler 10 | 9 . . . . . 1 . . . Hauler 7 | . 2 . . . 4 1 . . . Recycler 9 | 1 2 . . . 3 3 . . . Operator 4 | . 1 . . . 2 1 . . . Drone 1 | . . . . . . . . . 1 Watcher 5 | . 3 . . . 2 . . . . Swarmer 32 | . 6 6 . 2 4 10 . 4 . Grunt 39 | . 13 5 . . 10 4 4 3 . Duelist 1 | . . . . . 1 . . . . Sentry 7 | . . . . . 7 . . . . Specialist 2 | . . . . . . 2 . . . Hunter 2 | . . . . . 1 1 . . . Programmer 4 | . . . . . . 4 . . . Heavy 1 | . . . . . . 1 . . . Enhanced Grunt 2 | . . . . . . . . . 2 Best Kill Streak 5 | 3 3 3 . 2 5 5 4 4 1 Combat Bots Only 4 | . 3 3 . 2 4 4 4 4 1 Max Kills in Single Turn 3 | 1 3 2 . 1 1 3 1 3 1 Gunslinging . | . . . . . . . . . . Exploded 3 | . 3 . . 1 . 3 . 3 . Melee 1 | . . . . . 1 1 . . . Uniques/NPCs Destroyed 1 | . . 1 . . . . . . . YI-UF0 (-10/Mines) Combat | -11 -10 -10 -10 -9 -8 -7 -7 -7 -7 -------- Run | Yrd Mat Min Exi Min Mat Fac Low Low Dat Hostile Shots Fired 581 | . 75 66 . 3 162 151 15 18 91 Missed 145 | . 15 17 . 2 39 50 . 7 15 Hits 436 | . 60 49 . 1 123 101 15 11 76 Melee 3 | . . . . . 3 . . . . Projectile 433 | . 60 49 . 1 120 101 15 11 76 AOE 6 | . . 3 . . . . . . 3 Critical Strikes 16 | . 2 3 . . 6 3 1 1 . Part Disruptions 1 | . . . . . . . . . 1 Damage Taken 8590 | . 678 628 . 14 1790 1561 190 177 3552 Core 1057 | . 63 73 . . 177 208 45 . 491 Absorbed by Shields 211 | . . . . . 124 29 36 . 22 Reduced by Siege Mode 183 | . . . . . . . . . 183 Ignored by Resistances 182 | . . . . . . 182 . . . Regen/Repaired (Parts) 352 | . . . . . 132 220 . . . Core Remaining (%) 70 | 100 . . . 45 67 . . . . Volleys Fired 414 | 24 92 39 . 2 101 97 15 13 31 Largest 2 | 2 2 2 . 1 2 2 2 2 2 Hottest 130 | 40 60 60 . 33 130 130 130 130 130 Shots Fired 763 | 48 170 74 . 2 195 169 28 25 52 Gun 251 | 48 139 15 . 1 24 14 . . 10 Cannon 499 | . 30 56 . . 171 151 28 21 42 Launcher 13 | . 1 3 . 1 . 4 . 4 . Special . | . . . . . . . . . . Kinetic 297 | 48 169 71 . 1 8 . . . . Thermal 429 | . . . . . 187 151 28 21 42 Explosive 13 | . 1 3 . 1 . 4 . 4 . Electromagnetic 24 | . . . . . . 14 . . 10 Robot Hit Streak 17 | 11 17 12 . 2 8 10 8 4 17 Robot Miss Streak 7 | 3 7 3 . . 3 5 1 3 4 Penetration Max . | . . . . . . . . . . Secondary Targets . | . . . . . . . . . . Shots Hit Robots 432 | 34 101 41 . 1 118 73 14 12 38 Core Hits 193 | 11 39 19 . 2 44 36 8 10 24 Critical Kills . | . . . . . . . . . . Critical Parts Destroyed . | . . . . . . . . . . Critical Strikes 3 | . 2 . . . 1 . . . . Blast 3 | . 2 . . . 1 . . . . Melee Attacks 33 | . 2 . . . 5 8 . . 18 Impact 32 | . 2 . . . 5 8 . . 17 Slashing . | . . . . . . . . . . Piercing . | . . . . . . . . . . Sneak Attacks 2 | . . . . . 1 . . . 1 Combat Hostiles . | . . . . . . . . . . Follow-up Attacks . | . . . . . . . . . . Damage Inflicted 10436 | 435 1446 884 . 109 3377 2466 375 601 743 Guns 2201 | 435 1033 113 . 11 221 249 . . 139 Cannons 6926 | . 305 635 . . 2889 1797 375 321 604 Explosions 931 | . 105 130 . 98 . 318 . 280 . Melee 333 | . . . . . 238 95 . . . Ramming 45 | . 3 6 . . 29 7 . . . Kinetic 2626 | 435 1338 748 . 11 94 . . . . Thermal 6113 | . . . . . 3016 1797 375 321 604 Explosive 931 | . 105 130 . 98 . 318 . 280 . Electromagnetic 388 | . . . . . . 249 . . 139 Impact 333 | . . . . . 238 95 . . . Slashing . | . . . . . . . . . . Piercing . | . . . . . . . . . . Highest Corruption 21 | . . . . . . 21 21 21 21 Average Corruption 14 | . . . . . . 2 21 21 21 Corruption Purged 2 | . . . . . . 2 . . . Corruption Blocked . | . . . . . . . . . . Effects 111 | . . . . . . 12 37 36 26 Message Errors 37 | . . . . . . 3 17 11 6 Matter Fused 23 | . . . . . . 3 8 10 2 Heat Flow Errors 15 | . . . . . . 2 4 6 3 Energy Discharges 10 | . . . . . . 1 2 4 3 Parts Rejected 1 | . . . . . . . 1 . . Data Loss (minor) 8 | . . . . . . 1 2 2 3 Data Loss (major) 3 | . . . . . . . . 1 2 Alerts 3 | . . . . . . . 3 . . Misdirections 2 | . . . . . . . . 1 1 Weapon Failures 9 | . . . . . . 2 . 1 6 Overload Shots . | . . . . . . . . . . Overflow Damage 277 | . . 20 . . 151 93 2 11 . Projectiles 172 | . . 20 . . 81 58 2 11 . Explosions 35 | . . . . . . 35 . . . Melee 70 | . . . . . 70 . . . . Knockbacks 10 | . 2 6 . . 2 . . . . Impact 2 | . . . . . 2 . . . . Kinetic 8 | . 2 6 . . . . . . . Secondary . | . . . . . . . . . . Self-Inflicted Damage 21 | . . 13 . 8 . . . . . Shots 2 | . . 1 . 1 . . . . . Rammed 7 | . 1 2 . . 4 . . . . Targets Rammed 10 | . 1 2 . . 6 1 . . . Kicked . | . . . . . . . . . . Crushed 3 | . . . . . 2 1 . . . Highest Temperature 303 | . 78 45 . . 294 303 210 254 163 Average Temperature 63 | . 20 13 . . 82 59 48 77 42 Received Heat Transfer 2054 | . 333 297 . . 855 297 119 117 36 Effects 6 | . . . . . 4 2 . . . Energy Bleed 1 | . . . . . 1 . . . . Interference 5 | . . . . . 3 2 . . . Siege Activations 1 | . . . . . . . . . 1 Total Turns 44 | . . . . . . . . . 44 Longest Duration 44 | . . . . . . . . . 44 Martial Activations . | . . . . . . . . . . Shielding Activations . | . . . . . . . . . . Robots Disrupted . | . . . . . . . . . . Combat Hostiles . | . . . . . . . . . . Robots Corrupted 4 | . . . . . 1 2 . . 1 Combat Hostiles 3 | . . . . . . 2 . . 1 Parts Fried 9 | . . . . . . 4 . . 5 Impact Corruptions 5 | . . . . . 5 . . . . Robots Melted . | . . . . . . . . . . Combat Hostiles . | . . . . . . . . . . Parts Melted 20 | . . . . . 13 4 1 . 2 Heat Transferred 8806 | . . . . . 4255 2405 518 444 1184 Parts Sabotaged . | . . . . . . . . . . Parts Stolen . | . . . . . . . . . . Parts Stripped . | . . . . . . . . . . Power Chain Reactions . | . . . . . . . . . . Alert | -11 -10 -10 -10 -9 -8 -7 -7 -7 -7 ------- Run | Yrd Mat Min Exi Min Mat Fac Low Low Dat Maximum Alert Level 1 | . 1 . . . 1 . . . . Low Security (%) 85 | 100 57 100 . 100 77 100 . . . Level 1 14 | . 42 . . . 22 . . . . Level 2 . | . . . . . . . . . . Level 3 . | . . . . . . . . . . Level 4 . | . . . . . . . . . . Level 5 . | . . . . . . . . . . High Security . | . . . . . . . . . . Max Security . | . . . . . . . . . . Peak Influence 332 | 5 311 155 . 72 332 187 . . . Initial 147 | . . 105 . . . 147 . . . Average 82 | 1 170 28 . 11 89 67 . . . Influence Increases 2930 | 50 755 274 . 72 808 731 90 150 . Destroy 0b10 Robot/C 1760 | . 380 220 . 40 460 440 80 140 . Destroy 0b10 Robot/NC 205 | 50 45 . . . 75 35 . . . Destroy Leader 434 | . 90 40 . 10 142 132 10 10 . Successful Hack 32 | . 20 . . . 7 5 . . . Select Force Hacks 60 | . 60 . . . . . . . . Disable Machine 120 | . 15 . . 15 45 45 . . . Destroy Structure 124 | . 10 14 . 7 49 44 . . . Lose Combat Pursuer 195 | . 135 . . . 30 30 . . . Influence Decreases 2930 | 50 483 546 . 72 482 872 275 150 . Entered New Map 415 | . . 167 . . . 179 69 . . Time Decay 2274 | 50 473 339 . 72 392 592 206 150 . Lost Part 180 | . 10 40 . . 90 40 . . . Lost Ally 40 | . . . . . . 40 . . . Purge Threat 21 | . . . . . . 21 . . . Squads Dispatched 16 | . 4 . . . 3 9 . . . Investigation 4 | . 3 . . . . 1 . . . Extermination 4 | . . . . . . 4 . . . Reinforcement 8 | . 1 . . . 3 4 . . . Assault . | . . . . . . . . . . Garrison . | . . . . . . . . . . Intercept . | . . . . . . . . . . Searches Triggered . | . . . . . . . . . . Construction Impeded 1 | . . . . . 1 . . . . Haulers Reinforced . | . . . . . . . . . . Active Scanning Responses . | . . . . . . . . . . Cargo Convoy Interrupts 1 | . . . . . . 1 . . . Stealth | -11 -10 -10 -10 -9 -8 -7 -7 -7 -7 --------- Run | Yrd Mat Min Exi Min Mat Fac Low Low Dat Distress Signals 7 | . 3 . . . 3 1 . . . Communications Jammed . | . . . . . . . . . . Distress Signals . | . . . . . . . . . . Times Spotted 148 | . 43 13 . 3 37 37 4 3 8 Peak Tracking Total 7 | . 7 3 . 3 5 4 4 1 4 Tactical Retreats 8 | . 5 . . . 2 1 . . . Traps | -11 -10 -10 -10 -9 -8 -7 -7 -7 -7 ------- Run | Yrd Mat Min Exi Min Mat Fac Low Low Dat Traps Triggered 1 | . 1 . . . . . . . . Indirectly . | . . . . . . . . . . Trap Hack Attempts 6 | . . . . . . 6 . . . Triggered . | . . . . . . . . . . Disarmed . | . . . . . . . . . . Reprogrammed 1 | . . . . . . 1 . . . Reused . | . . . . . . . . . . Traps Extracted . | . . . . . . . . . . Installed . | . . . . . . . . . . Triggered . | . . . . . . . . . . Machines | -11 -10 -10 -10 -9 -8 -7 -7 -7 -7 ---------- Run | Yrd Mat Min Exi Min Mat Fac Low Low Dat Machines Disabled 9 | . 1 . . 1 3 3 . . 1 Max in Single Turn 1 | . 1 . . 1 1 1 . . 1 Garrison Access 1 | . . . . . . 1 . . . Machines Repaired . | . . . . . . . . . . Machines Dismantled . | . . . . . . . . . . Machines Sabotaged . | . . . . . . . . . . Overloaded Fab Kills . | . . . . . . . . . . Hacking | -11 -10 -10 -10 -9 -8 -7 -7 -7 -7 --------- Run | Yrd Mat Min Exi Min Mat Fac Low Low Dat Machines Accessed 31 | . 8 . 2 1 6 9 1 . 4 Terminals 13 | . 6 . . . 3 4 . . . Fabricators 1 | . . . . . . 1 . . . Repair Stations 3 | . . . . . 2 1 . . . Recycling Units 5 | . 2 . . . 1 2 . . . Scanalyzers . | . . . . . . . . . . Garrison Access 1 | . . . . . . 1 . . . Total Hacks 94 | . 24 . 2 1 14 29 1 . 23 Successful 59 | . 13 . 2 1 6 13 1 . 23 Failed 35 | . 11 . . . 8 16 . . . Catastrophic 1 | . . . . . 1 . . . . Database Lockouts . | . . . . . . . . . . Manual 30 | . 18 . . . 9 3 . . . Terminals 39 | . 18 . . . 9 12 . . . Fabricators 7 | . . . . . . 7 . . . Repair Stations 9 | . . . . . 4 5 . . . Recycling Units 11 | . 6 . . . 1 4 . . . Scanalyzers . | . . . . . . . . . . Garrison Access 1 | . . . . . . 1 . . . Terminal Hacks 33 | . 4 . 2 1 . 2 1 . 23 Record 6 | . . . 2 . . . . . 4 Part Schematic 13 | . 1 . . . . 1 . . 11 Robot Schematic 5 | . . . . . . . . . 5 Robot Analysis 1 | . 1 . . . . . . . . Prototype ID Bank 4 | . 1 . . . . . . . 3 Open Door 2 | . . . . 1 . . 1 . . Unreport Threat 1 | . . . . . . 1 . . . Locate Traps 1 | . 1 . . . . . . . . Fabricator Hacks 3 | . . . . . . 3 . . . Network Status 1 | . . . . . . 1 . . . Load Schematic 1 | . . . . . . 1 . . . Build 1 | . . . . . . 1 . . . Repair Station Hacks 7 | . . . . . 3 4 . . . Scan Component 4 | . . . . . 2 2 . . . Repair 3 | . . . . . 1 2 . . . Recycling Unit Hacks 2 | . . . . . . 2 . . . Retrieve Components 2 | . . . . . . 2 . . . Scanalyzer . | . . . . . . . . . . Garrison Access Hacks 1 | . . . . . . 1 . . . Seal Access 1 | . . . . . . 1 . . . Unauthorized Hacks 13 | . 9 . . . 3 1 . . . Terminals 11 | . 7 . . . 3 1 . . . Botnet 3 | . 1 . . . 1 1 . . . Operators 3 | . 2 . . . 1 . . . . Skim 5 | . 4 . . . 1 . . . . Fabricators . | . . . . . . . . . . Repair Stations . | . . . . . . . . . . Recycling Units 2 | . 2 . . . . . . . . Tunnel 2 | . 2 . . . . . . . . Scanalyzers . | . . . . . . . . . . Garrison Access . | . . . . . . . . . . Data Cores Recovered . | . . . . . . . . . . Used . | . . . . . . . . . . Hacking Detections 19 | . 8 . . . 5 6 . . . Full Trace Events 1 | . . . . . . 1 . . . Feedback Events . | . . . . . . . . . . Feedback Blocked . | . . . . . . . . . . Robot Schematics Acquired 5 | . . . . . . . . . 5 Robots Built . | . . . . . . . . . . Authchips . | . . . . . . . . . . Time . | . . . . . . . . . . Total Robot Build Rating . | . . . . . . . . . . Part Schematics Acquired 13 | . 1 . . . . 1 . . 11 Parts Built 1 | . . . . . . 1 . . . Authchips . | . . . . . . . . . . Time 53 | . . . . . . 53 . . . Total Part Build Rating 6 | . . . . . . 6 . . . Parts Repaired 3 | . . . . . 1 2 . . . Time 96 | . . . . . 44 52 . . . Parts Recycled . | . . . . . . . . . . Recycled Matter . | . . . . . . . . . . Retrieved Matter . | . . . . . . . . . . Retrieved Components 12 | . . . . . . 12 . . . Parts Scanalyzed . | . . . . . . . . . . Part Schematics Acquired . | . . . . . . . . . . Parts Damaged . | . . . . . . . . . . Bothacking | -11 -10 -10 -10 -9 -8 -7 -7 -7 -7 ------------ Run | Yrd Mat Min Exi Min Mat Fac Low Low Dat Used RIF Installer . | . . . . . . . . . . Robots Hacked 1 | . . . . . . . . . 1 Non-combat . | . . . . . . . . . . Combat 1 | . . . . . . . . . 1 Robot Hacks Applied 1 | . . . . . . . . . 1 parse_system 1 | . . . . . . . . . 1 Relay Couplers Released . | . . . . . . . . . . Fabnet Peak Effective % . | . . . . . . . . . . Robots Rewired . | . . . . . . . . . . Allies Hacked . | . . . . . . . . . . Hacks Repelled . | . . . . . . . . . . Allies | -11 -10 -10 -10 -9 -8 -7 -7 -7 -7 -------- Run | Yrd Mat Min Exi Min Mat Fac Low Low Dat Total Allies 2 | . . 1 . 1 . . . . . Largest Group 1 | . . 1 . 1 1 . . . . Highest-Rated Group 31 | . . 31 . 31 31 . . . . Highest-Rated Ally 31 | . . 31 . 31 31 . . . . Total Orders 61 | . . . . . . 36 9 10 6 STAY 1 | . . . . . . . . . 1 EXPLORE 32 | . . . . . . 19 5 3 5 RETURN 28 | . . . . . . 17 4 7 . Ally Attacks . | . . . . . . . . . . Total Damage . | . . . . . . . . . . Kills . | . . . . . . . . . . Allies Corrupted . | . . . . . . . . . . Allies Melted 1 | . . . . . . . . 1 . Intel | -11 -10 -10 -10 -9 -8 -7 -7 -7 -7 ------- Run | Yrd Mat Min Exi Min Mat Fac Low Low Dat Active Infowar (turns) 8022 | 311 1693 1566 642 480 1228 1876 226 . . Seismic 8022 | 311 1693 1566 642 480 1228 1876 226 . . Robot Analysis Total 1 | . 1 . . . . . . . . Derelict Logs Recovered 7 | . . 1 . 2 . . 2 2 . Drone Launches 86 | . . . . . . 37 5 12 32 Drone Recoveries 69 | . . . . . . 33 5 11 20 Exploration | -11 -10 -10 -10 -9 -8 -7 -7 -7 -7 ------------- Run | Yrd Mat Min Exi Min Mat Fac Low Low Dat Turns Passed 10989 | 419 2015 1660 642 480 1629 2175 740 824 405 Spaces Moved 4650 | 201 888 769 385 261 691 790 280 286 99 Core 3 | 3 . . . . . . . . . Treads 4647 | 198 888 769 385 261 691 790 280 286 99 Legs . | . . . . . . . . . . Wheels . | . . . . . . . . . . Hover . | . . . . . . . . . . Flight . | . . . . . . . . . . Fastest Speed 50 | 50 160 160 160 160 152 152 237 237 237 Average Speed 178 | 158 160 160 160 160 156 204 237 239 237 Slowest Speed 317 | 160 160 160 160 160 160 240 237 317 237 Overloaded Moves . | . . . . . . . . . . Propulsion Burnouts . | . . . . . . . . . . Robots Hopped . | . . . . . . . . . . Potential Cave-ins . | . . . . . . . . . . Cave-ins Triggered . | . . . . . . . . . . Exploration Rate (%) 68 | 7 98 99 88 55 55 40 98 70 79 Regions Visited 9 Branch Regions 6 Pre-discovered Areas 3 | . 2 . . . . . . . 1 Known Exits Taken 4 | . . . . . 1 1 1 1 . Unknown Exits Taken 5 | 1 1 1 1 1 . . . . . Scrap Searched 5 | . . 1 . . . . 2 2 . Spaces Dug 70 | . 6 21 . 9 5 28 1 . . Terrain Destroyed 167 | . 6 22 . 9 44 41 2 42 1 Melee 6 | . 1 . . . . 5 . . . Projectile 80 | . . 1 . . 44 29 2 3 1 AOE 81 | . 5 21 . 9 . 7 . 39 . Terrain Rammed . | . . . . . . . . . . Walls Destroyed . | . . . . . . . . . . Machines Disabled . | . . . . . . . . . . Actions | -11 -10 -10 -10 -9 -8 -7 -7 -7 -7 --------- Run | Yrd Mat Min Exi Min Mat Fac Low Low Dat Total 6496 | 250 1300 1120 410 326 1035 1147 329 396 183 Wait 1047 | 14 273 295 24 44 136 136 25 86 14 Move 4641 | 200 887 768 384 260 690 789 279 285 99 Hop . | . . . . . . . . . . Pick Up 64 | 5 12 4 . 7 15 18 2 1 . Fast Attach 37 | 7 3 . . . 18 8 1 . . Attach 37 | . . 4 . . 11 8 1 . 13 Detach 11 | . . . . . 7 2 1 . 1 Swap 135 | . 23 8 2 4 21 56 4 10 7 Drop 61 | . 7 . . 9 25 18 1 1 . Fire 414 | 24 92 39 . 2 101 97 15 13 31 Melee 33 | . 2 . . . 5 8 . . 18 Ram . | . . . . . . . . . . Kick . | . . . . . . . . . . Crush 10 | . 1 2 . . 6 1 . . . Escape Stasis . | . . . . . . . . . . Rewire . | . . . . . . . . . . Trap 6 | . . . . . . 6 . . . Miscellaneous . | . . . . . . . . . . Route ------- -11/Scrapyard -10/Materials (discovered 5 exits: [*Mat x3] / [*Min] / [*Sub]) -10/Mines (discovered 4 exits: [*Mat x2] / *Exi / [*Sub]) -10/Exiles -9/Mines -8/Materials (discovered 4 exits: *Fac x2 / *Sto x2) -7/Factory (discovered 2 exits: *Fac / *Low) -7/Lower Caves -7/Lower Caves (discovered 2 exits: *Fac / *Dat) -7/Data Miner (discovered 1 exit: [*Pro]) History --------- Turn | Location | Event 21 | -11/Scrapyard | Discovered new exit (range 15) 420 | -11/Scrapyard | Entered Materials 421 | -10/Materials | Build established: Mutant 509 | -10/Materials | Discovered new exit (range 15) 1143 | -10/Materials | Discovered new exit (range 4) 1366 | -10/Materials | Discovered new exit (range 16) 1479 | -10/Materials | Discovered new exit (range 9) 1594 | -10/Materials | Discovered new exit (range 8) 2435 | -10/Materials | Entered Mines 2441 | -10/Mines | Discovered new exit (range 6) 2581 | -10/Mines | Discovered new exit (range 6) 2773 | -10/Mines | Core integrity fell below 50% 2826 | -10/Mines | Received a Rocket Launcher from a helpful Derelict 2882 | -10/Mines | Found a damaged Exp. Sensor Array with a note attached 2886 | -10/Mines | Found Prototype Device 3691 | -10/Mines | Learned Materials security intel 3772 | -10/Mines | Discovered new exit (range 15) 3866 | -10/Mines | Found a hidden stash of uninstalled traps 3973 | -10/Mines | Destroyed YI-UF0 4052 | -10/Mines | Escorted by a lone wolf Derelict 4087 | -10/Mines | Deemed a non-threat by the Exiles lab entrance 4089 | -10/Mines | Discovered new exit (range 5) 4095 | -10/Mines | Entered Exiles 4095 | -10/Exiles | Found Exiles lab abandoned 4095 | -10/Exiles | Accompanied by 1 ally 4694 | -10/Exiles | Discovered new exit (range 14) 4737 | -10/Exiles | Entered Mines 4784 | -9/Mines | Joined a pair of Derelicts in attacking an 0b10 outpost 4875 | -9/Mines | Assembled infested the area 4950 | -9/Mines | Found the Drone Emporium 4960 | -9/Mines | Found Prototype Device 4983 | -9/Mines | Received a Mining Laser from a helpful Derelict 5087 | -9/Mines | Learned 2 Materials zone layouts 5092 | -9/Mines | Learned Materials trap positions 5200 | -9/Mines | Discovered new exit (range 14) 5217 | -9/Mines | Entered Materials 5217 | -8/Materials | Accompanied by 1 ally 5217 | -8/Materials | Evolved 4 slots: Propulsion x2, Utility x2 5218 | -8/Materials | Identified exit to Factory 5219 | -8/Materials | Loaded intel: 17 trap records 5509 | -8/Materials | Build established: Scavenger-Mutant 5974 | -8/Materials | Build established: Mutant 6120 | -8/Materials | Discovered exit to Factory (range 16) 6361 | -8/Materials | Lost 3 parts (1n2u) 6424 | -8/Materials | Lost 3 parts (2n1u) 6444 | -8/Materials | Discovered new exit (range 14) 6455 | -8/Materials | Discovered new exit (range 14) 6564 | -8/Materials | Identified exit to Storage 6612 | -8/Materials | Build established: Scavenger-Mutant 6766 | -8/Materials | Repaired Hvy. Ion Cannon 6846 | -8/Materials | Entered Factory 6846 | -7/Factory | Evolved 2 slots: Utility x2 7048 | -7/Factory | Repaired Lgt. Treads 7075 | -7/Factory | Repaired Lgt. Treads 7189 | -7/Factory | Identified Sensor Drone Bay 7584 | -7/Factory | Fabricated Hvy. Treads (x1) 8004 | -7/Factory | Discovered new exit (range 64) 8009 | -7/Factory | Identified exit to Lower Caves 8077 | -7/Factory | Discovered new exit (range 86) 8079 | -7/Factory | Identified exit to Factory 8168 | -7/Factory | Lost 3 parts (2n1u) 8431 | -7/Factory | Cargo convoy interrupted 8939 | -7/Factory | System corruption reached 10% 9021 | -7/Factory | Entered Lower Caves 9168 | -7/Lower Caves | Encountered a Warlord checkpoint 9444 | -7/Lower Caves | Discovered new exit (range 31) 9486 | -7/Lower Caves | Identified exit to Lower Caves 9568 | -7/Lower Caves | Build established: Mutant 9660 | -7/Lower Caves | Learned Factory emergency access door positions 9716 | -7/Lower Caves | Learned 4 Factory zone layouts 9761 | -7/Lower Caves | Entered another Lower Caves area 9873 | -7/Lower Caves | Discovered exit to Factory (range 33) 9963 | -7/Lower Caves | Learned Factory terminal intel 10530 | -7/Lower Caves | Discovered new exit (range 10) 10557 | -7/Lower Caves | Identified exit to Data Miner 10585 | -7/Lower Caves | Entered Data Miner 10585 | -7/Data Miner | Accompanied by 1 ally 10585 | -7/Data Miner | Discovered new exit (range 7) 10631 | -7/Data Miner | Met Data Miner 10706 | -7/Data Miner | Learned location of Section 7 (-2) 10706 | -7/Data Miner | Acquired the access code to Warlord's prototype stash 10739 | -7/Data Miner | Received God Mode back door access code from Data Miner 10775 | -7/Data Miner | Data Conduit disabled 10923 | -7/Data Miner | Core integrity fell below 50% 10968 | -7/Data Miner | Core integrity fell below 20% 10990 | -7/Data Miner | Destroyed by Enhanced Grunt with Neutron Cannon Last Messages --------------- Bay (repair cost: 2). 10971_ Hvy. EM Shotgun destroyed. 10972_ Sensor Drone retrieved by Sensor Drone Bay (no repairs). 10974_ Sensor Drone released from Sensor Drone Bay. 10976_ Arm. Treads destroyed. 10976_ Sensor Drone destroyed. 10977_ Sensor Drone released from Sensor Drone Bay. 10984_ Hvy. Ion Cannon destroyed. 10986_ Sensor Drone retrieved by Sensor Drone Bay (repair cost: 6). 10986_ Sensor Drone retrieved by Sensor Drone Bay (no repairs). 10987_ Sensor Drone destroyed. 10987_ Sensor Drone retrieved by Sensor Drone Bay (no repairs). 10989_ Sensor Drone Bay destroyed. 10989_ >> Lost connection to Sensor Drone. Map ----- +----------------------------------------------------+ | | | | | | | | | | | | | | | | | | | | | | | | | | | | | | | | | | | ???????????????????????????????????????? | | ???????????????????????????????????????? | | ???????????????????????????????????????? | | ???????##?????####?????????????????????? | | ???????# ###### #???????????????????### | | ????#####;#;=; #####??????????????### | | ???##" " *=%= """######?#??????## | | ??##" " " "!%] """""""# # ###### < # | | ??#" """""" g @ n | | ??# """"" % | | ??#" "" "" g% | | ??# """ | | ??# " % | | ??# " "" """"""""""""" | | ??#" " " % ""############## | | ??##" "" """""###????????????? | | ???#; """""" #####??????????????? | | ???#########"## "#??????????????????? | | ???????????#"### "#??????????????????? | | ???????????#"### "#??????????????????? | | ???????????#"## "#??????????????????? | | ???????????#"## "#??????????????????? | | ?????????????# "#??????????????????? | | ?????????????### "#??????????????????? | | ???????????????# "##?????????????????? | | ??????????????## ""#?????????????????? | | ???????????#?## ""#?????????????????? | | ??????????##"#"X ""#?????????????????? | | ??????????""""" "####??????????????? | | ??????????""""" X"""""??????????????? | | ??????????##"#"X "##"#??????????????? | | ???????????#?## X""""#??????????????? | | ??????????????## "##"#??????????????? | +----------------------------------------------------+ Best States ------------- Heat Dissipation 76 Energy Generation 16 Energy Capacity 290 Matter Stores 300 Matter Capacity 300 Sight Range 16 Terrain Scan Density 10 Armor Coverage 900 Resistance: KI 30 Core Shielding 20 Evasion (%) 40 Recoil Reduction 4 Offensive Hacking 10 Authchip Count 2 Item Schematics ----------------- Huge Storage Unit | -10/Materials | Hacked Hvy. Treads | -7/Factory | Hacked Combat Drone Bay | -7/Data Miner | Free Lgt. Regenerative Plating | -7/Data Miner | Free Cld. Cesium-ion Thruster | -7/Data Miner | Free Gravity Neutralizer | -7/Data Miner | Free Antimatter Cannon | -7/Data Miner | Free Imp. Coolant Injector | -7/Data Miner | Free Variable Charge Gun | -7/Data Miner | Free Imp. Gravmag System | -7/Data Miner | Free Hvy. Shock Bomb Launcher | -7/Data Miner | Free Imp. Thermal Shield | -7/Data Miner | Free Field Propulsion Array | -7/Data Miner | Free Robot Schematics ------------------ M-28 Smith | -7/Data Miner | Free H-66 Slayer | -7/Data Miner | Free A-15 Conveyor | -7/Data Miner | Free X-67 Chaingunner | -7/Data Miner | Free B-48 Gladiator | -7/Data Miner | Free Fabricated ------------ Hvy. Treads | x1 | -7/Factory Repaired ---------- Hvy. Ion Cannon | 2% | -8/Materials Lgt. Treads | 12% | -7/Factory Lgt. Treads | 30% | -7/Factory Alien Tech Used ----------------- None Achievements -------------- None Challenges ------------ None Game ------ Seed StormBladeStorm Manual? 0 Play Time 01:32:25 Cumulative 388.8 hours Start 2025.05.23 @ 21:25:52 End 2025.05.24 @ 14:14:27 Sessions 3 Manual Loads 0 Difficulty Rogue Special Mode None Game No. 189 Rogue 126 Adventurer 63 Explorer 0 Win Type - Total 8 Types 7/0/0/1/0/0/0/0/0/0 Lore% 84 Gallery% 76 Achievement% 64 Wizard Run 0 Options --------- Layout 2 ASCII 0 Keyboard 1 Movement Numpad Keybinds 0 Fullscreen 1 Font 24/Terminus Map View 50x44 Zoom Use 5% Tactical HUD 1 Map Filters NONE Filters NONE Steam 1 RUN: fe6e8dca-326f-4203-a012-58a2cf1a876c